lending/lending_fUSD_20240111
["ID","MTS","AMOUNT","RATE_DAILY","PERIOD"]
[311201611,1704981060208,-500.0,0.00040547,4]
[311201612,1704981060218,-500.0,0.00040547,4]
[311201613,1704981060227,-500.0,0.00040547,4]
[311201614,1704981060237,-815.2,0.00040547,4]
[311201615,1704981060246,-500.0,0.00040547,5]
[311201616,1704981060257,-4939.37,0.00040547,4]
[311201617,1704981060267,-1003.19,0.00040547,4]
[311201618,1704981060277,-500.0,0.00040547,4]
[311201619,1704981060288,-500.0,0.00040547,4]
[311201620,1704981060298,-500.0,0.00040547,4]
[311201621,1704981060308,-984.65,0.00040547,4]
[311201622,1704981060318,-500.0,0.00040547,4]
[311201623,1704981060328,-3740.27,0.00040547,4]
[311201624,1704981060338,-500.0,0.00040547,4]
[311201625,1704981060347,-500.0,0.00040547,4]
[311201626,1704981060357,-527.19,0.00040547,4]
[311201627,1704981060367,-500.0,0.00040547,4]
[311201628,1704981060377,-151.0,0.00040547,7]
[311201629,1704981060386,-151.0,0.00040547,7]
[311201630,1704981060396,-150.0,0.000406,11]
[311201631,1704981060406,-293.69,0.00040644,2]
[311201632,1704981060416,-420.67,0.00040644,2]
[311201633,1704981060425,-293.89,0.00040646,2]
[311201634,1704981060434,-6839.50522379,0.00040684,2]
[311201635,1704981060444,-4265.0,0.000407,81]
[311201636,1704981060454,-151.82364856,0.0004072,9]
[311201637,1704981060463,-457.68,0.00040733,2]
[311201638,1704981060472,-5094.4880684,0.00040791,14]
[311201639,1704981060481,-2714.58,0.000408,7]
[311201640,1704981060490,-2556.19,0.000408,7]
[311201641,1704981060500,-1369.34,0.000408,7]
[311201642,1704981060510,-200.0,0.000408,2]
[311201643,1704981060519,-153.96,0.000408,4]
[311201644,1704981060529,-153.96,0.000408,4]
[311201645,1704981060538,-153.96,0.000408,4]
[311201646,1704981060548,-153.96,0.000408,4]
[311201647,1704981060558,-153.96,0.000408,4]
[311201648,1704981060567,-153.96,0.000408,4]
[311201649,1704981060577,-153.96,0.000408,4]
[311201650,1704981060586,-153.96,0.000408,4]
[311201651,1704981060596,-153.96,0.000408,4]
[311201652,1704981060605,-153.96,0.000408,4]
[311201653,1704981060615,-153.96,0.000408,4]
[311201654,1704981060626,-153.96,0.000408,4]
[311201655,1704981060636,-153.96,0.000408,4]
[311201656,1704981060646,-153.96,0.000408,4]
[311201657,1704981060656,-500.0,0.00040821,4]
[311201658,1704981060666,-500.0,0.00040821,4]
[311201659,1704981060676,-500.0,0.00040821,4]
[311201660,1704981060687,-500.0,0.00040821,4]
[311201661,1704981060697,-500.0,0.00040821,4]
[311201662,1704981060707,-541.87,0.00040821,4]
[311201663,1704981060717,-500.0,0.00040821,4]
[311201664,1704981060728,-500.0,0.00040821,4]
[311201665,1704981060738,-500.0,0.00040821,4]
[311201666,1704981060748,-596.14,0.00040821,4]
[311201667,1704981060758,-980.24,0.00040821,4]
[311201668,1704981060768,-500.0,0.00040821,4]
[311201669,1704981060780,-500.0,0.00040821,4]
[311201670,1704981060791,-500.0,0.00040821,4]
[311201671,1704981060800,-500.0,0.00040821,4]
[311201672,1704981060810,-500.0,0.00040821,5]
[311201673,1704981060821,-1069.99,0.00040821,4]
[311201674,1704981060831,-1742.08,0.00040821,4]
[311201675,1704981060842,-500.0,0.00040821,4]
[311201676,1704981060853,-500.0,0.00040821,4]
[311201677,1704981060864,-500.0,0.00040821,4]
[311201678,1704981060875,-500.0,0.00040821,4]
[311201679,1704981060888,-899.88,0.00040821,4]
[311201680,1704981060898,-500.0,0.00040821,4]
[311201681,1704981060908,-500.0,0.00040821,4]
[311201682,1704981060918,-500.0,0.00040821,4]
[311201683,1704981060929,-1405.49,0.00040821,4]
[311201684,1704981060939,-500.0,0.00040821,4]
[311201685,1704981060988,-500.0,0.00040821,4]
[311201686,1704981060998,-500.0,0.00040821,4]
[311201687,1704981061007,-500.0,0.00040821,4]
[311201688,1704981061017,-656.59,0.00040821,4]
[311201689,1704981061026,-500.0,0.00040821,4]
[311201690,1704981061035,-500.0,0.00040821,4]
[311201691,1704981061044,-500.0,0.00040821,4]
[311201692,1704981061054,-2683.03,0.00040821,4]
[311201693,1704981061064,-500.0,0.00040821,4]
[311201694,1704981061073,-694.49,0.00040821,4]
[311201695,1704981061083,-500.0,0.00040821,4]
[311201696,1704981061092,-614.75,0.00040821,4]
[311201697,1704981061101,-548.01,0.00040821,4]
[311201698,1704981061110,-500.0,0.00040821,4]
[311201699,1704981061119,-500.0,0.00040821,4]
[311201700,1704981061132,-500.0,0.00040821,4]
[311201701,1704981061141,-815.2,0.00040821,4]
[311201702,1704981061150,-476.2,0.00040821,5]
[311201703,1704981061160,-4939.37,0.00040821,4]
[311201704,1704981061169,-1003.19,0.00040821,4]
[311201705,1704981061179,-561.68,0.00040821,4]
[311201706,1704981061188,-500.0,0.00040821,4]
[311201707,1704981061198,-500.0,0.00040821,4]
[311201708,1704981061207,-984.65,0.00040821,4]
[311201709,1704981061216,-425.21,0.00040821,4]
[311201710,1704981061226,-3740.27,0.00040821,4]
[311201711,1704981061236,-500.0,0.00040821,4]
[311201712,1704981061245,-500.0,0.00040821,4]
[311201713,1704981061255,-527.19,0.00040821,4]
[311201714,1704981061264,-500.0,0.00040821,4]
[311201715,1704981061273,-151.0,0.00040821,7]
[311201716,1704981061282,-151.0,0.00040821,7]
[311201717,1704981061291,-267.401423,0.00040821,7]
[311201718,1704981061301,-479.04,0.00040861,2]
[311201719,1704981061310,-1998.02,0.000409,2]
[311201720,1704981061319,-3000.0,0.000409,27]
[311201721,1704981061328,-150.0,0.000409,14]
[311201722,1704981061337,-316.1,0.000409,2]
[311201723,1704981061346,-3150.0,0.0004091,27]
[311201724,1704981061355,-426.11,0.00040986,2]
[311201725,1704981061365,-150.0,0.00040991,2]
[311201726,1704981061375,-3438.85999802,0.00041,4]
[311201727,1704981061384,-800.0,0.00041,2]
[311201728,1704981061392,-2509.0,0.00041,7]
[311201729,1704981061402,-150.0,0.00041068,2]
[311201730,1704981061411,-2631.25461202,0.00041095,4]
[311201731,1704981061420,-200.0,0.00041095,2]
[311201732,1704981061429,-352.12020968,0.00041095,7]
[311201733,1704981061438,-500.0,0.00041095,30]
[311201734,1704981061447,-500.0,0.00041095,30]
[311201735,1704981061456,-500.0,0.00041095,30]
[311201736,1704981061465,-500.0,0.00041095,30]
[311201737,1704981061475,-500.0,0.00041095,30]
[311201738,1704981061484,-541.87,0.00041095,30]
[311201739,1704981061494,-500.0,0.00041095,30]
[311201740,1704981061503,-500.0,0.00041095,30]
[311201741,1704981061513,-500.0,0.00041095,30]
[311201742,1704981061523,-596.14,0.00041095,30]
[311201743,1704981061532,-980.24,0.00041095,30]
[311201744,1704981061542,-500.0,0.00041095,30]
[311201745,1704981061551,-500.0,0.00041095,30]
[311201746,1704981061559,-500.0,0.00041095,30]
[311201747,1704981061569,-500.0,0.00041095,30]
[311201748,1704981061578,-500.0,0.00041095,5]
[311201749,1704981061589,-1069.99,0.00041095,30]
[311201750,1704981061598,-1742.08,0.00041095,30]
[311201751,1704981061607,-500.0,0.00041095,30]
[311201752,1704981061616,-500.0,0.00041095,30]
[311201753,1704981061627,-500.0,0.00041095,30]
[311201754,1704981061636,-574.31,0.00041095,30]
[311201755,1704981061645,-899.88,0.00041095,30]
[311201756,1704981061655,-500.0,0.00041095,30]
[311201757,1704981061664,-500.0,0.00041095,30]
[311201758,1704981061674,-500.0,0.00041095,30]
[311201759,1704981061684,-1405.49,0.00041095,30]
[311201760,1704981061693,-500.0,0.00041095,30]
[311201761,1704981061702,-1000.0,0.00041095,10]
[311201762,1704981061711,-1000.0,0.00041095,10]
[311201763,1704981061721,-1000.0,0.00041095,10]
[311201764,1704981061731,-1000.0,0.00041095,10]
[311201765,1704981061740,-1000.0,0.00041095,10]
[311201766,1704981061751,-500.0,0.00041095,30]
[311201767,1704981061761,-1000.0,0.00041095,10]
[311201768,1704981061770,-1000.0,0.00041095,10]
[311201769,1704981061780,-1000.0,0.00041095,10]
[311201770,1704981061790,-500.0,0.00041095,30]
[311201771,1704981061799,-500.0,0.00041095,30]
[311201772,1704981061808,-656.59,0.00041095,30]
[311201773,1704981061817,-500.0,0.00041095,30]
[311201774,1704981061826,-500.0,0.00041095,30]
[311201775,1704981061835,-500.0,0.00041095,30]
[311201776,1704981061845,-2683.03,0.00041095,30]
[311201777,1704981061855,-500.0,0.00041095,30]
[311201778,1704981061864,-694.49,0.00041095,30]
[311201779,1704981061874,-500.0,0.00041095,30]
[311201780,1704981061884,-614.75,0.00041095,30]
[311201781,1704981061895,-548.01,0.00041095,30]
[311201782,1704981061908,-500.0,0.00041095,30]
[311201783,1704981061925,-500.0,0.00041095,30]
[311201784,1704981061936,-500.0,0.00041095,30]
[311201785,1704981061946,-815.2,0.00041095,30]
[311201786,1704981061955,-4939.37,0.00041095,30]
[311201787,1704981061965,-1003.19,0.00041095,30]
[311201788,1704981061974,-500.0,0.00041095,30]
[311201789,1704981061983,-500.0,0.00041095,30]
[311201790,1704981061992,-984.65,0.00041095,30]
[311201791,1704981062002,-3740.27,0.00041095,30]
[311201792,1704981062011,-500.0,0.00041095,30]
[311201793,1704981062021,-500.0,0.00041095,30]
[311201794,1704981062030,-527.19,0.00041095,30]
[311201795,1704981062040,-500.0,0.00041095,30]
[311201796,1704981062049,-180.0,0.00041096,2]
[311201797,1704981062058,-2241.02,0.00041096,2]
[311201798,1704981062068,-314.95,0.00041096,2]
[311201799,1704981062077,-1626.81775172,0.00041104,5]
[311201800,1704981062087,-153.84,0.00041121,2]
[311201801,1704981062097,-150.0,0.0004121,2]
[311201802,1704981062106,-150.0,0.0004122,2]
[311201803,1704981062115,-5094.4880684,0.00041236,15]
[311201804,1704981062126,-150.0,0.00041275,2]
[311201805,1704981062136,-786.67222,0.0004128,8]
[311201806,1704981062146,-150.0,0.00041293,2]
[311201807,1704981062155,-150.0,0.00041333,2]
[311201808,1704981062166,-193.06753879,0.00041352,3]
[311201809,1704981062176,-150.0,0.00041355,2]
[311201810,1704981062185,-150.0,0.0004136,2]
[311201811,1704981062195,-150.0,0.00041366,2]
[311201812,1704981062206,-151.82364856,0.00041367,11]
[311201813,1704981062216,-500.0,0.00041368,2]
[311201814,1704981062226,-500.0,0.00041369,30]
[311201815,1704981062248,-500.0,0.00041369,30]
[311201816,1704981062265,-500.0,0.00041369,30]
[311201817,1704981062275,-500.0,0.00041369,30]
[311201818,1704981062284,-500.0,0.00041369,30]
[311201819,1704981062294,-541.87,0.00041369,30]
[311201820,1704981062303,-500.0,0.00041369,30]
[311201821,1704981062313,-500.0,0.00041369,30]
[311201822,1704981062323,-500.0,0.00041369,30]
[311201823,1704981062333,-596.14,0.00041369,30]
[311201824,1704981062343,-980.24,0.00041369,30]
[311201825,1704981062352,-500.0,0.00041369,30]
[311201826,1704981062362,-500.0,0.00041369,30]
[311201827,1704981062371,-500.0,0.00041369,30]
[311201828,1704981062384,-500.0,0.00041369,30]
[311201829,1704981062394,-500.0,0.00041369,5]
[311201830,1704981062404,-1069.99,0.00041369,30]
[311201831,1704981062413,-1742.08,0.00041369,30]
[311201832,1704981062423,-500.0,0.00041369,30]
[311201833,1704981062432,-500.0,0.00041369,30]
[311201834,1704981062441,-204.87838993,0.00041369,30]
[311201835,1704981062451,-899.88,0.00041369,30]
[311201836,1704981062461,-500.0,0.00041369,30]
[311201837,1704981062470,-500.0,0.00041369,30]
[311201838,1704981062480,-500.0,0.00041369,30]
[311201839,1704981062490,-1405.49,0.00041369,30]
[311201840,1704981062499,-500.0,0.00041369,30]
[311201841,1704981062509,-500.0,0.00041369,30]
[311201842,1704981062519,-1000.0,0.00041369,10]
[311201843,1704981062529,-500.0,0.00041369,30]
[311201844,1704981062543,-500.0,0.00041369,30]
[311201845,1704981062553,-656.59,0.00041369,30]
[311201846,1704981062564,-500.0,0.00041369,30]
[311201847,1704981062575,-500.0,0.00041369,30]
[311201848,1704981062584,-500.0,0.00041369,30]
[311201849,1704981062595,-2683.03,0.00041369,30]
[311201850,1704981062606,-500.0,0.00041369,30]
[311201851,1704981062615,-694.49,0.00041369,30]
[311201852,1704981062627,-500.0,0.00041369,30]
[311201853,1704981062637,-614.75,0.00041369,30]
[311201854,1704981062646,-548.01,0.00041369,30]
[311201855,1704981062655,-500.0,0.00041369,30]
[311201856,1704981062669,-500.0,0.00041369,30]
[311201857,1704981062679,-500.0,0.00041369,30]
[311201858,1704981062689,-815.2,0.00041369,30]
[311201859,1704981062700,-4939.37,0.00041369,30]
[311201860,1704981062712,-1003.19,0.00041369,30]
[311201861,1704981062723,-500.0,0.00041369,30]
[311201862,1704981062734,-500.0,0.00041369,30]
[311201863,1704981062745,-984.65,0.00041369,30]
[311201864,1704981062764,-3740.27,0.00041369,30]
[311201865,1704981062779,-500.0,0.00041369,30]
[311201866,1704981062795,-500.0,0.00041369,30]
[311201867,1704981062810,-527.19,0.00041369,30]
[311201868,1704981062819,-500.0,0.00041369,30]
[311201869,1704981062829,-150.0,0.0004137,2]
[311201870,1704981062839,-150.0,0.0004138,2]
[311201871,1704981062849,-271.48297066,0.00041394,2]
[311201872,1704981062859,-150.0,0.00041396,2]
[311201873,1704981062871,-2714.58,0.000414,7]
[311201874,1704981062884,-2556.19,0.000414,7]
[311201875,1704981062894,-1369.34,0.000414,7]
[311201876,1704981062904,-150.0,0.00041419,2]
[311201877,1704981062915,-150.0,0.00041433,2]
[311201878,1704981062925,-205.0,0.00041439,25]
[311201879,1704981062935,-173.95,0.0004144,2]
[311201880,1704981062945,-943.8,0.00041444,2]
[311201881,1704981062955,-150.0,0.00041455,2]
[311201882,1704981062965,-249.0,0.00041457,28]
[311201883,1704981062975,-150.0,0.00041467,2]
[311201884,1704981062984,-150.0,0.00041472,2]
[311201885,1704981062994,-150.0,0.00041473,2]
[311201886,1704981063003,-150.0,0.00041474,2]
[311201887,1704981063013,-150.0,0.00041477,2]
[311201888,1704981063023,-150.0,0.00041481,2]
[311201889,1704981063032,-150.0,0.00041484,2]
[311201890,1704981063042,-150.0,0.0004149,2]
[311201891,1704981063051,-1500.0,0.00041494,2]
[311201892,1704981063061,-150.0,0.00041495,2]
[311201893,1704981063070,-10779.85,0.000415,3]
[311201894,1704981063080,-150.0,0.00041524,30]
[311201895,1704981063090,-150.0,0.00041527,2]
[311201896,1704981063099,-150.0,0.00041528,2]
[311201897,1704981063109,-150.0,0.00041536,2]
[311201898,1704981063118,-150.0,0.00041539,2]
[311201899,1704981063130,-150.0,0.0004154,2]
[311201900,1704981063140,-151.78,0.00041552,2]
[311201901,1704981063150,-150.0,0.00041559,2]
[311201902,1704981063160,-150.0,0.0004156,2]
[311201903,1704981063169,-150.0,0.00041571,2]
[311201904,1704981063179,-150.0,0.00041575,2]
[311201905,1704981063188,-150.0,0.00041578,2]
[311201906,1704981063198,-150.0,0.00041586,2]
[311201907,1704981063207,-150.0,0.00041588,2]
[311201908,1704981063217,-150.0,0.0004159,2]
[311201909,1704981063227,-150.0,0.00041595,2]
[311201910,1704981063237,-150.0,0.00041595,2]
[311201911,1704981063246,-150.0,0.00041597,2]
[311201912,1704981063256,-150.0,0.00041598,2]
[311201913,1704981063266,-403.042016,0.000416,14]
[311201914,1704981063275,-150.0,0.00041602,2]
[311201915,1704981063284,-150.0,0.00041603,2]
[311201916,1704981063294,-150.0,0.00041606,2]
[311201917,1704981063303,-150.0,0.00041608,2]
[311201918,1704981063313,-150.0,0.0004161,2]
[311201919,1704981063322,-150.0,0.00041612,2]
[311201920,1704981063332,-150.0,0.00041613,2]
[311201921,1704981063341,-1500.0,0.00041614,2]
[311201922,1704981063351,-150.0,0.00041617,2]
[311201923,1704981063360,-150.0,0.00041622,2]
[311201924,1704981063370,-150.0,0.00041633,2]
[311201925,1704981063383,-150.0,0.00041634,2]
[311201926,1704981063392,-150.0,0.00041643,2]
[311201927,1704981063402,-500.0,0.00041643,30]
[311201928,1704981063412,-500.0,0.00041643,30]
[311201929,1704981063421,-445.33,0.00041643,30]
[311201930,1704981063431,-500.0,0.00041643,30]
[311201931,1704981063442,-500.0,0.00041643,30]
[311201932,1704981063452,-541.87,0.00041643,30]
[311201933,1704981063461,-470.64,0.00041643,30]
[311201934,1704981063471,-500.0,0.00041643,30]
[311201935,1704981063481,-500.0,0.00041643,30]
[311201936,1704981063491,-596.14,0.00041643,30]
[311201937,1704981063500,-980.24,0.00041643,30]
[311201938,1704981063510,-500.0,0.00041643,30]
[311201939,1704981063521,-500.0,0.00041643,30]
[311201940,1704981063530,-247.75,0.00041643,30]
[311201941,1704981063540,-500.0,0.00041643,30]
[311201942,1704981063550,-500.0,0.00041643,5]
[311201943,1704981063560,-1069.99,0.00041643,30]
[311201944,1704981063569,-1742.08,0.00041643,30]
[311201945,1704981063579,-500.0,0.00041643,30]
[311201946,1704981063589,-500.0,0.00041643,30]
[311201947,1704981063599,-899.88,0.00041643,30]
[311201948,1704981063609,-500.0,0.00041643,30]
[311201949,1704981063619,-500.0,0.00041643,30]
[311201950,1704981063631,-500.0,0.00041643,30]
[311201951,1704981063641,-1405.49,0.00041643,30]
[311201952,1704981063651,-500.0,0.00041643,30]
[311201953,1704981063661,-500.0,0.00041643,30]
[311201954,1704981063671,-1000.0,0.00041643,10]
[311201955,1704981063681,-500.0,0.00041643,30]
[311201956,1704981063691,-500.0,0.00041643,30]
[311201957,1704981063700,-656.59,0.00041643,30]
[311201958,1704981063709,-500.0,0.00041643,30]
[311201959,1704981063719,-500.0,0.00041643,30]
[311201960,1704981063729,-2683.03,0.00041643,30]
[311201961,1704981063739,-500.0,0.00041643,30]
[311201962,1704981063748,-694.49,0.00041643,30]
[311201963,1704981063758,-500.0,0.00041643,30]
[311201964,1704981063768,-614.75,0.00041643,30]
[311201965,1704981063777,-548.01,0.00041643,30]
[311201966,1704981063789,-500.0,0.00041643,30]
[311201967,1704981063799,-500.0,0.00041643,30]
[311201968,1704981063809,-500.0,0.00041643,30]
[311201969,1704981063820,-815.2,0.00041643,30]
[311201970,1704981063830,-4939.37,0.00041643,30]
[311201971,1704981063840,-1003.19,0.00041643,30]
[311201972,1704981063851,-500.0,0.00041643,30]
[311201973,1704981063861,-500.0,0.00041643,30]
[311201974,1704981063871,-984.65,0.00041643,30]
[311201975,1704981063883,-3740.27,0.00041643,30]
[311201976,1704981063893,-500.0,0.00041643,30]
[311201977,1704981063903,-500.0,0.00041643,30]
[311201978,1704981063912,-527.19,0.00041643,30]
[311201979,1704981063922,-500.0,0.00041643,30]
[311201980,1704981063932,-150.0,0.00041648,2]
[311201981,1704981063941,-150.0,0.0004165,2]
[311201982,1704981063951,-150.0,0.0004165,2]
[311201983,1704981063961,-307.40170157,0.00041651,2]
[311201984,1704981063971,-150.0,0.00041653,2]
[311201985,1704981063981,-150.0,0.00041657,2]
[311201986,1704981063991,-150.0,0.00041667,2]
[311201987,1704981064000,-2281.14837512,0.00041671,30]
[311201988,1704981064010,-1201.57739026,0.00041671,30]
[311201989,1704981064021,-2302.35139799,0.00041671,30]
[311201990,1704981064031,-1182.36314748,0.00041671,30]
[311201991,1704981064041,-5094.4880684,0.00041682,16]
[311201992,1704981064051,-150.0,0.00041682,2]
[311201993,1704981064061,-150.0,0.00041698,2]
[311201994,1704981064071,-150.0,0.00041709,2]
[311201995,1704981064081,-150.0,0.0004171,2]
[311201996,1704981064090,-1500.0,0.00041718,2]
[311201997,1704981064101,-150.0,0.00041721,2]
[311201998,1704981064111,-150.0,0.00041723,2]
[311201999,1704981064120,-300.0,0.00041728,2]
[311202000,1704981064131,-150.0,0.00041731,2]
[311202001,1704981064141,-150.0,0.00041732,2]
[311202002,1704981064150,-545.9401446,0.00041734,2]
[311202003,1704981064160,-150.0,0.00041741,2]
[311202004,1704981064171,-150.0,0.00041747,2]
[311202005,1704981064180,-150.0,0.00041755,2]
[311202006,1704981064190,-150.0,0.00041774,2]
[311202007,1704981064201,-150.0,0.00041778,2]
[311202008,1704981064211,-476.23269486,0.0004178,2]
[311202009,1704981064221,-150.0,0.00041785,2]
[311202010,1704981064231,-1120.3265902,0.0004179,4]
[311202011,1704981064241,-255.0,0.0004179,12]
[311202012,1704981064250,-2003.5655,0.0004179,3]
[311202013,1704981064261,-255.0,0.0004179,12]
[311202014,1704981064271,-150.0,0.0004179,2]
[311202015,1704981064281,-255.0,0.0004179,12]
[311202016,1704981064291,-175.21914469,0.0004179,12]
[311202017,1704981064301,-150.0,0.00041791,2]
[311202018,1704981064311,-344.68,0.00041792,2]
[311202019,1704981064322,-153.96,0.000418,4]
[311202020,1704981064332,-153.96,0.000418,4]
[311202021,1704981064342,-153.96,0.000418,4]
[311202022,1704981064352,-153.96,0.000418,4]
[311202023,1704981064362,-153.96,0.000418,4]
[311202024,1704981064372,-153.96,0.000418,4]
[311202025,1704981064384,-153.96,0.000418,4]
[311202026,1704981064394,-153.96,0.000418,4]
[311202027,1704981064403,-153.96,0.000418,4]
[311202028,1704981064413,-153.96,0.000418,4]
[311202029,1704981064422,-153.96,0.000418,4]
[311202030,1704981064432,-153.96,0.000418,4]
[311202031,1704981064443,-153.96,0.000418,4]
[311202032,1704981064453,-153.96,0.000418,4]
[311202033,1704981064463,-153.96,0.000418,4]
[311202034,1704981064473,-153.96,0.000418,4]
[311202035,1704981064483,-153.96,0.000418,4]
[311202036,1704981064493,-150.0,0.00041808,2]
[311202037,1704981064503,-150.0,0.00041811,2]
[311202038,1704981064514,-150.0,0.00041817,2]
[311202039,1704981064523,-150.0,0.00041818,2]
[311202040,1704981064533,-593.2292907,0.0004182,2]
[311202041,1704981064543,-150.0,0.00041824,2]
[311202042,1704981064554,-150.0,0.00041828,2]
[311202043,1704981064564,-150.0,0.00041831,2]
[311202044,1704981064574,-150.0,0.00041839,2]
[311202045,1704981064584,-150.0,0.00041851,2]
[311202046,1704981064594,-150.0,0.00041856,2]
[311202047,1704981064604,-300.0,0.00041861,2]
[311202048,1704981064614,-150.0,0.00041866,2]
[311202049,1704981064624,-150.0,0.00041873,2]
[311202050,1704981064638,-150.0,0.00041878,2]
[311202051,1704981064648,-150.0,0.00041891,2]
[311202052,1704981064658,-150.0,0.00041897,2]
[311202053,1704981064669,-150.0,0.00041897,2]
[311202054,1704981064679,-2556.19,0.000419,7]
[311202055,1704981064690,-2714.58,0.000419,7]
[311202056,1704981064701,-1369.34,0.000419,7]
[311202057,1704981064711,-3388.14184135,0.000419,120]
[311202058,1704981064722,-1515.06068143,0.000419,4]
[311202059,1704981064734,-150.0,0.00041905,2]
[311202060,1704981064889,-150.0,0.0004191,2]
[311202061,1704981064900,-460.92,0.00041917,30]
[311202062,1704981064909,-500.0,0.00041917,30]
[311202063,1704981064920,-500.0,0.00041917,30]
[311202064,1704981064930,-500.0,0.00041917,30]
[311202065,1704981064940,-541.87,0.00041917,30]
[311202066,1704981064951,-500.0,0.00041917,30]
[311202067,1704981064961,-500.0,0.00041917,30]
[311202068,1704981064971,-596.14,0.00041917,30]
[311202069,1704981064981,-980.24,0.00041917,30]
[311202070,1704981064991,-500.0,0.00041917,30]
[311202071,1704981065001,-500.0,0.00041917,30]
[311202072,1704981065011,-500.0,0.00041917,30]
[311202073,1704981065022,-500.0,0.00041917,5]
[311202074,1704981065032,-1069.99,0.00041917,30]
[311202075,1704981065043,-1742.08,0.00041917,30]
[311202076,1704981065054,-500.0,0.00041917,30]
[311202077,1704981065066,-500.0,0.00041917,30]
[311202078,1704981065077,-899.88,0.00041917,30]
[311202079,1704981065087,-500.0,0.00041917,30]
[311202080,1704981065098,-500.0,0.00041917,30]
[311202081,1704981065108,-500.0,0.00041917,30]
[311202082,1704981065118,-1101.21136707,0.00041917,30]
[311202083,1704981065260,-304.27863293,0.00041917,30]
[311202084,1704981065271,-500.0,0.00041917,30]
[311202085,1704981065281,-500.0,0.00041917,30]
[311202086,1704981065292,-1000.0,0.00041917,10]
[311202087,1704981065302,-500.0,0.00041917,30]
[311202088,1704981065313,-500.0,0.00041917,30]
[311202089,1704981065323,-656.59,0.00041917,30]
[311202090,1704981065333,-500.0,0.00041917,30]
[311202091,1704981065343,-500.0,0.00041917,30]
[311202092,1704981065354,-2683.03,0.00041917,30]
[311202093,1704981065365,-500.0,0.00041917,30]
[311202094,1704981065375,-694.49,0.00041917,30]
[311202095,1704981065389,-500.0,0.00041917,30]
[311202096,1704981065398,-614.75,0.00041917,30]
[311202097,1704981065408,-548.01,0.00041917,30]
[311202098,1704981065418,-500.0,0.00041917,30]
[311202099,1704981065428,-500.0,0.00041917,30]
[311202100,1704981065438,-252.94776707,0.00041917,30]
[311202101,1704981065451,-247.05223293,0.00041917,30]
[311202102,1704981065461,-815.2,0.00041917,30]
[311202103,1704981065472,-132.85423777,0.00041917,30]
[311202104,1704981065484,-1538.25655907,0.00041917,30]
[311202105,1704981065497,-3268.25920316,0.00041917,30]
[311202106,1704981065507,-1003.19,0.00041917,30]
[311202107,1704981065518,-500.0,0.00041917,30]
[311202108,1704981065529,-500.0,0.00041917,30]
[311202109,1704981065539,-984.65,0.00041917,30]
[311202110,1704981065550,-3740.27,0.00041917,30]